Cogmind - Beta 16.1 @@@ ROGUE MODE // 2026.06.20 @ 16:19:42 Player: D4-RYL Result: Self-destructed Performance ------------- Evolutions (2) 1000 Regions Visited (6) 1200 Robots Destroyed (61) 305 Value Destroyed (1307) 1307 Prototype IDs (4) 80 Alien Tech Used (0) 0 Bonus (0) 0 TOTAL SCORE: 3892 Bonus ------- None Cogmind --------- Core Integrity 377/550 Matter 231/300 Energy 100/100 System Corruption 2% Temperature Cool (9) Movement Core (750) Ox14 Location -8/Materials Parts ------- > --- POWER (1) -------- (None) > --- PROPULSION (4) --- (None) > --- UTILITY (4) ------ High-capacity Storage Unit Improved Targeting Computer > --- WEAPON (2) ------- Autogun > --- INVENTORY (20) --- Light Nuclear Core Armored Treads Armored Treads Advanced Treads Armored Wheel Heat Sink High-capacity Storage Unit Targeting Computer Hardened Medium Armor Plating Hardlight Generator Light EM Pulse Cannon Light EM Pulse Cannon Beam Cannon Beam Cannon Heavy Assault Rifle Shotgun High-powered Shotgun Heavy Hammer Peak State ------------ > --- POWER ------------ Light Nuclear Core > --- PROPULSION ------- Armored Treads Armored Treads Wheel Armored Wheel > --- UTILITY ---------- High-capacity Storage Unit Improved Targeting Computer Improved Targeting Computer Light Armor Plating > --- WEAPON ----------- Heavy Assault Rifle Heavy Assault Rifle > --- INVENTORY -------- Light Nuclear Core Armored Treads Armored Treads Advanced Treads Armored Wheel Heat Sink High-capacity Storage Unit Targeting Computer Hardened Medium Armor Plating Hardlight Generator Light EM Pulse Cannon Light EM Pulse Cannon Beam Cannon Beam Cannon Heavy Assault Rifle Autogun Shotgun High-powered Shotgun EMP Blaster Heavy Hammer [Rating: 26] Favorites ----------- Power Light Ion Engine Engine Light Ion Engine Power Core Light Nuclear Core Propulsion Wheel Treads Armored Treads Wheel Wheel Utility High-capacity Storage Unit Device Seismic Detector Storage High-capacity Storage Unit Processor Improved Targeting Computer Protection Hardened Light Armor Plating Weapon Heavy Assault Rifle Energy Gun Medium Laser Energy Cannon Light EM Pulse Cannon Ballistic Gun Heavy Assault Rifle Ballistic Cannon Light Cannon Launcher Grenade Launcher Build | -11 -10 -9 -9 -9 -8 -8 ------- Run | Yrd Mat Mat Min Exi Min Mat Slots Evolved 4 | . . 2 . . . 2 Power . | . . . . . . . Propulsion 2 | . . 1 . . . 1 Utility 2 | . . 1 . . . 1 Weapon . | . . . . . . . Parts Attached 42 | 7 8 10 . 1 2 14 Power 5 | 1 1 1 . . 1 1 Engine 4 | 1 1 1 . . 1 . Core 1 | . . . . . . 1 Reactor . | . . . . . . . Propulsion 12 | 2 1 3 . 1 1 4 Treads 4 | . . . . 1 . 3 Leg . | . . . . . . . Wheel 8 | 2 1 3 . . 1 1 Hover . | . . . . . . . Flight . | . . . . . . . Utility 9 | 2 1 3 . . . 3 Device 2 | 1 . 1 . . . . Storage 2 | 1 1 . . . . . Processor 3 | . . 2 . . . 1 Hackware . | . . . . . . . Protection 2 | . . . . . . 2 Artifact . | . . . . . . . Weapon 16 | 2 5 3 . . . 6 Energy Gun 2 | 1 1 . . . . . Energy Cannon 3 | . 1 . . . . 2 Ballistic Gun 8 | 1 1 3 . . . 3 Ballistic Cannon 1 | . 1 . . . . . Launcher 2 | . 1 . . . . 1 Special Weapon . | . . . . . . . Impact Weapon . | . . . . . . . Slashing Weapon . | . . . . . . . Piercing Weapon . | . . . . . . . Special Melee Weapon . | . . . . . . . Unidentified Prototypes . | . . . . . . . Parts Lost 25 | . 3 5 . . 3 14 Power 5 | . 1 1 . . 1 2 Propulsion 9 | . 1 2 . . 1 5 Utility 5 | . . . . . 1 4 Weapon 6 | . 1 2 . . . 3 Highest Loss Streak 13 | . 3 4 . . 3 13 To Critical Strikes . | . . . . . . . Average Backups 15 | 2 7 16 20 20 18 19 Power . | . . . . . . . Propulsion 2 | 1 1 2 3 3 2 4 Utility 5 | . 1 5 7 8 7 5 Weapon 7 | . 3 8 9 9 9 8 Tool/Special . | . . . . . . . Unused Backups 18 | . . . 1 . . 17 Power 1 | . . . . . . 1 Propulsion 4 | . . . . . . 4 Utility 6 | . . . . . . 6 Weapon 7 | . . . 1 . . 6 Tool/Special . | . . . . . . . Average Slot Usage (%) 97 | . 97 96 100 100 93 96 Engine 9 | . 13 10 11 11 9 3 Core 1 | . . . . . . 4 Treads 5 | . . . . 3 11 17 Wheel 25 | . 26 31 33 29 20 17 Device 10 | . 14 11 11 11 8 7 Storage 11 | . 14 11 11 11 11 9 Processor 7 | . . 10 11 11 11 9 Protection 2 | . . . . . . 8 Energy Gun 2 | . 11 . . . . . Energy Cannon 1 | . 3 5 . . . 1 Ballistic Gun 15 | . 4 15 22 22 22 16 Ballistic Cannon 1 | . 8 . . . . . Peak Build Rating 26 | 7 9 13 13 13 13 26 Average Rating 13 | 5 7 11 13 13 12 21 On Entrance 9 | . 7 9 13 13 13 13 Avg Prop Armor Cover (%) 13 | . . . . 10 10 16 Naked Turns . | . . . . . . . Heaviest Build 57 | 15 51 50 49 49 49 57 Greatest Support 42 | 26 32 42 36 36 20 22 Greatest Overweight (x) 5 | . 2 1 1 2 4 5 Average Overweight (x) 1 | . . 1 1 1 2 2 Largest Inventory Capacity 20 | 8 20 20 20 20 20 20 Average Capacity 18 | 7 18 20 20 20 20 20 Most Carried 20 | 4 16 20 20 20 20 20 Average Carried 15 | 3 7 16 19 20 18 19 Final Capacity 20 | 8 20 20 20 20 20 20 Final Carried 20 | 4 16 20 20 20 19 18 Class Distribution -------------------- 84% | Mutant 15% | Scavenger-Mutant Dominant Class ---------------- Mutant | -10/Materials Mutant | -9/Materials Mutant | -9/Mines Mutant | -9/Exiles Scavenger-Mutant | -8/Mines Mutant | -8/Materials Resources | -11 -10 -9 -9 -9 -8 -8 ----------- Run | Yrd Mat Mat Min Exi Min Mat Matter Collected 1363 | 293 259 243 . . 79 489 Remotely . | . . . . . . . Salvage Created 1819 | 182 364 353 . . 52 868 Parts 120 | 14 23 18 . . 4 61 Haulers Intercepted 2 | . . . . . . 2 Recyclers Shooed 2 | 1 . 1 . . . . Parts Field Recycled . | . . . . . . . Retrieved Matter . | . . . . . . . Parts Self-Destructed . | . . . . . . . Prevented . | . . . . . . . Parts Restored . | . . . . . . . Kills | -11 -10 -9 -9 -9 -8 -8 ------- Run | Yrd Mat Mat Min Exi Min Mat Combat Hostiles Destroyed 41 | . 13 8 . . 3 17 Guns 25 | . 2 4 . . 3 16 Cannons 6 | . 5 . . . . 1 AOE 10 | . 6 4 . . . . Classes Destroyed 11 | 2 3 2 . . . 4 Worker 5 | . . 3 . . . 2 Builder 1 | . . . . . . 1 Tunneler 5 | 5 . . . . . . Hauler 2 | . . . . . . 2 Recycler 3 | 1 1 1 . . . . Watcher 4 | . 2 1 . . . 1 Swarmer 19 | . 6 4 . . 3 6 Grunt 15 | . 7 3 . . . 5 Sentry 3 | . . 1 . . . 2 Specialist 3 | . . . . . . 3 Hunter 1 | . . . . . . 1 Best Kill Streak 6 | 3 5 6 . . 3 5 Combat Bots Only 5 | . 5 4 . . 3 3 Max Kills in Single Turn 6 | 1 3 6 . . 1 2 Gunslinging . | . . . . . . . Exploded 4 | . 2 4 . . . . Melee . | . . . . . . . Uniques/NPCs Destroyed . | . . . . . . . Combat | -11 -10 -9 -9 -9 -8 -8 -------- Run | Yrd Mat Mat Min Exi Min Mat Hostile Shots Fired 313 | . 64 37 . . 28 184 Missed 99 | . 19 9 . . 5 66 Hits 214 | . 45 28 . . 23 118 Projectile 214 | . 45 28 . . 23 118 Critical Strikes 9 | . 2 1 . . . 6 Damage Taken 3235 | . 657 375 . . 184 2019 Core 499 | . 178 113 . . 35 173 Absorbed by Shields . | . . . . . . . Core Remaining (%) 63 | 100 28 . . . 63 . Volleys Fired 166 | 11 37 26 . . 9 83 Largest 2 | 2 2 2 . . 2 2 Hottest 116 | 70 106 76 . . 43 116 Shots Fired 314 | 22 69 47 . . 18 158 Gun 265 | 22 34 44 . . 18 147 Cannon 41 | . 31 2 . . . 8 Launcher 8 | . 4 1 . . . 3 Special . | . . . . . . . Kinetic 256 | 11 36 44 . . 18 147 Thermal 35 | 11 20 . . . . 4 Explosive 5 | . 4 1 . . . . Electromagnetic 18 | . 9 2 . . . 7 Robot Hit Streak 12 | 12 8 9 . . 3 12 Robot Miss Streak 4 | 1 3 2 . . 4 3 Penetration Max . | . . . . . . . Secondary Targets 3 | . . . . . 2 1 Max Gunslinging Chain 1 | . . . . . 1 1 Shots Hit Robots 216 | 16 41 37 . . 7 115 Core Hits 95 | 7 22 18 . . 3 45 Critical Kills . | . . . . . . . Critical Parts Destroyed . | . . . . . . . Critical Strikes 1 | 1 . . . . . . Burn 1 | 1 . . . . . . Melee Attacks . | . . . . . . . Impact . | . . . . . . . Slashing . | . . . . . . . Piercing . | . . . . . . . Sneak Attacks . | . . . . . . . Combat Hostiles . | . . . . . . . Follow-up Attacks . | . . . . . . . Damage Inflicted 3924 | 206 1026 688 . . 102 1902 Guns 2650 | 206 277 442 . . 102 1623 Cannons 529 | . 352 37 . . . 140 Explosions 745 | . 397 209 . . . 139 Melee . | . . . . . . . Ramming . | . . . . . . . Kinetic 2565 | 79 319 442 . . 102 1623 Thermal 368 | 127 137 . . . . 104 Explosive 606 | . 397 209 . . . . Electromagnetic 385 | . 173 37 . . . 175 Impact . | . . . . . . . Slashing . | . . . . . . . Piercing . | . . . . . . . Highest Corruption 2 | . . . . . . 2 Average Corruption 2 | . . . . . . 2 Corruption Purged . | . . . . . . . Corruption Blocked . | . . . . . . . Effects 4 | . . . . . . 4 Heat Flow Errors 1 | . . . . . . 1 Energy Discharges 1 | . . . . . . 1 Data Loss (minor) 1 | . . . . . . 1 Weapon Failures 1 | . . . . . . 1 Overload Shots . | . . . . . . . Overflow Damage 49 | . 48 1 . . . . Projectiles 12 | . 12 . . . . . Explosions 37 | . 36 1 . . . . Melee . | . . . . . . . Knockbacks . | . . . . . . . Impact . | . . . . . . . Kinetic . | . . . . . . . Secondary . | . . . . . . . Self-Inflicted Damage 135 | . 95 40 . . . . Shots 5 | . 4 1 . . . . Rammed . | . . . . . . . Targets Rammed . | . . . . . . . Kicked . | . . . . . . . Crushed . | . . . . . . . Highest Temperature 262 | 27 177 48 . . . 262 Average Temperature 62 | 10 60 18 . . . 85 Received Heat Transfer 1053 | . 324 171 . . . 558 Siege Activations . | . . . . . . . Martial Activations . | . . . . . . . Shielding Activations . | . . . . . . . Robots Disrupted . | . . . . . . . Combat Hostiles . | . . . . . . . Robots Corrupted . | . . . . . . . Combat Hostiles . | . . . . . . . Parts Fried . | . . . . . . . Impact Corruptions . | . . . . . . . Robots Melted . | . . . . . . . Combat Hostiles . | . . . . . . . Parts Melted . | . . . . . . . Heat Transferred 1099 | 444 407 . . . . 248 Parts Sabotaged . | . . . . . . . Parts Stolen . | . . . . . . . Parts Stripped . | . . . . . . . Power Chain Reactions 1 | . . . . . . 1 Alert | -11 -10 -9 -9 -9 -8 -8 ------- Run | Yrd Mat Mat Min Exi Min Mat Maximum Alert Level . | . . . . . . . Low Security (%) 100 | 100 100 100 100 . 100 100 Level 1 . | . . . . . . . Level 2 . | . . . . . . . Level 3 . | . . . . . . . Level 4 . | . . . . . . . Level 5 . | . . . . . . . High Security . | . . . . . . . Max Security . | . . . . . . . Peak Influence 187 | 10 134 118 45 . 60 187 Initial 45 | . . . 45 . . . Average 37 | 1 57 50 7 . 21 42 Influence Increases 1180 | 30 363 256 . . 70 461 Destroy 0b10 Robot/C 820 | . 260 160 . . 60 340 Destroy 0b10 Robot/NC 100 | 30 15 25 . . . 30 Destroy Leader 162 | . 54 32 . . 10 66 Successful Hack 22 | . 5 12 . . . 5 Disable Machine 15 | . . . . . . 15 Destroy Structure 46 | . 29 12 . . . 5 Lose Combat Pursuer 15 | . . 15 . . . . Influence Decreases 1180 | 30 363 138 118 . 70 461 Entered New Map 73 | . . . 73 . . . Time Decay 703 | 30 234 98 45 . 70 226 Lost Part 155 | . 30 40 . . . 85 Purge Threat 249 | . 99 . . . . 150 Squads Dispatched 8 | . 3 1 . . . 4 Investigation 3 | . 2 1 . . . . Extermination . | . . . . . . . Reinforcement 5 | . 1 . . . . 4 Assault . | . . . . . . . Garrison . | . . . . . . . Intercept . | . . . . . . . Searches Triggered . | . . . . . . . Construction Impeded 1 | . . . . . . 1 Haulers Reinforced . | . . . . . . . Active Scanning Responses . | . . . . . . . Cargo Convoy Interrupts . | . . . . . . . Stealth | -11 -10 -9 -9 -9 -8 -8 --------- Run | Yrd Mat Mat Min Exi Min Mat Distress Signals 5 | . 1 1 . . . 3 Communications Jammed . | . . . . . . . Distress Signals . | . . . . . . . Times Spotted 58 | . 16 13 . . 3 26 Peak Tracking Total 6 | . 5 6 . . 3 4 Tactical Retreats 1 | . . 1 . . . . Traps | -11 -10 -9 -9 -9 -8 -8 ------- Run | Yrd Mat Mat Min Exi Min Mat Traps Triggered 3 | . 2 . . . . 1 Indirectly . | . . . . . . . Trap Hack Attempts . | . . . . . . . Triggered . | . . . . . . . Disarmed . | . . . . . . . Reprogrammed . | . . . . . . . Reused . | . . . . . . . Traps Extracted . | . . . . . . . Installed . | . . . . . . . Triggered . | . . . . . . . Machines | -11 -10 -9 -9 -9 -8 -8 ---------- Run | Yrd Mat Mat Min Exi Min Mat Machines Disabled 1 | . . . . . . 1 Max in Single Turn 1 | . . . . . . 1 Machines Repaired . | . . . . . . . Machines Dismantled . | . . . . . . . Machines Sabotaged . | . . . . . . . Overloaded Fab Kills . | . . . . . . . Hacking | -11 -10 -9 -9 -9 -8 -8 --------- Run | Yrd Mat Mat Min Exi Min Mat Machines Accessed 7 | . 3 1 . . . 3 Terminals 6 | . 3 . . . . 3 Fabricators . | . . . . . . . Repair Stations . | . . . . . . . Recycling Units . | . . . . . . . Scanalyzers 1 | . . 1 . . . . Garrison Access . | . . . . . . . Total Hacks 25 | . 8 3 . . . 14 Successful 16 | . 6 1 . . . 9 Failed 9 | . 2 2 . . . 5 Catastrophic 2 | . . . . . . 2 Database Lockouts . | . . . . . . . Manual . | . . . . . . . Terminals 22 | . 8 . . . . 14 Fabricators . | . . . . . . . Repair Stations . | . . . . . . . Recycling Units . | . . . . . . . Scanalyzers 3 | . . 3 . . . . Garrison Access . | . . . . . . . Terminal Hacks 15 | . 6 . . . . 9 Record 5 | . 1 . . . . 4 Prototype ID Bank 3 | . 2 . . . . 1 Emergency Access Points 1 | . . . . . . 1 Alert Level 2 | . 1 . . . . 1 Unreport Threat 2 | . 1 . . . . 1 Hauler Manifests 2 | . 1 . . . . 1 Fabricator Hacks . | . . . . . . . Repair Station Hacks . | . . . . . . . Recycling Unit Hacks . | . . . . . . . Scanalyzer 1 | . . 1 . . . . Retrieve Study 1 | . . 1 . . . . Garrison Access Hacks . | . . . . . . . Unauthorized Hacks . | . . . . . . . Terminals . | . . . . . . . Fabricators . | . . . . . . . Repair Stations . | . . . . . . . Recycling Units . | . . . . . . . Scanalyzers . | . . . . . . . Garrison Access . | . . . . . . . Data Cores Recovered . | . . . . . . . Used . | . . . . . . . Hacking Detections 4 | . 1 1 . . . 2 Full Trace Events 2 | . . 1 . . . 1 Feedback Events . | . . . . . . . Feedback Blocked . | . . . . . . . Robot Schematics Acquired . | . . . . . . . Robots Built . | . . . . . . . Authchips . | . . . . . . . Time . | . . . . . . . Total Robot Build Rating . | . . . . . . . Part Schematics Acquired . | . . . . . . . Parts Built . | . . . . . . . Authchips . | . . . . . . . Time . | . . . . . . . Total Part Build Rating . | . . . . . . . Part Studies Acquired 1 | . . 1 . . . . Parts Repaired . | . . . . . . . Time . | . . . . . . . Parts Recycled . | . . . . . . . Recycled Matter . | . . . . . . . Retrieved Matter . | . . . . . . . Retrieved Components . | . . . . . . . Parts Scanalyzed . | . . . . . . . Part Schematics Acquired . | . . . . . . . Parts Damaged . | . . . . . . . Bothacking | -11 -10 -9 -9 -9 -8 -8 ------------ Run | Yrd Mat Mat Min Exi Min Mat Used RIF Installer . | . . . . . . . Robots Hacked . | . . . . . . . Non-combat . | . . . . . . . Combat . | . . . . . . . Robot Hacks Applied . | . . . . . . . Relay Couplers Released . | . . . . . . . Fabnet Peak Effective % . | . . . . . . . Robots Rewired . | . . . . . . . Allies Hacked . | . . . . . . . Hacks Repelled . | . . . . . . . Allies | -11 -10 -9 -9 -9 -8 -8 -------- Run | Yrd Mat Mat Min Exi Min Mat Total Allies . | . . . . . . . Largest Group . | . . . . . . . Highest-Rated Group . | . . . . . . . Highest-Rated Ally . | . . . . . . . Total Orders . | . . . . . . . Ally Attacks . | . . . . . . . Total Damage . | . . . . . . . Kills . | . . . . . . . Allies Corrupted . | . . . . . . . Allies Melted . | . . . . . . . Intel | -11 -10 -9 -9 -9 -8 -8 ------- Run | Yrd Mat Mat Min Exi Min Mat Active Infowar (turns) 2559 | 9 630 418 333 425 145 599 Sensors 1050 | . . 281 333 425 11 . Seismic 1509 | 9 630 137 . . 134 599 Robot Analysis Total . | . . . . . . . Derelict Logs Recovered 1 | . . . 1 . . . Drone Launches . | . . . . . . . Drone Recoveries . | . . . . . . . Exploration | -11 -10 -9 -9 -9 -8 -8 ------------- Run | Yrd Mat Mat Min Exi Min Mat Turns Passed 2912 | 208 630 418 333 425 207 691 Spaces Moved 2121 | 173 413 285 346 439 165 300 Core 1 | 1 . . . . . . Treads 8 | . . . . . . 8 Legs . | . . . . . . . Wheels 2112 | 172 413 285 346 439 165 292 Hover . | . . . . . . . Flight . | . . . . . . . Fastest Speed 50 | 50 90 95 95 95 100 100 Average Speed 101 | 89 111 104 95 96 101 106 Slowest Speed 330 | 90 130 108 95 100 130 330 Overloaded Moves . | . . . . . . . Propulsion Burnouts . | . . . . . . . Robots Hopped . | . . . . . . . Potential Cave-ins . | . . . . . . . Cave-ins Triggered . | . . . . . . . Exploration Rate (%) 45 | 6 68 22 69 77 45 33 Regions Visited 6 Branch Regions 3 Pre-discovered Areas 1 | . . . 1 . . . Known Exits Taken . | . . . . . . . Unknown Exits Taken 6 | 1 1 1 1 1 1 . Scrap Searched 3 | . . . 1 . 2 . Spaces Dug . | . . . . . . . Terrain Destroyed 42 | . 30 10 . . . 2 Melee . | . . . . . . . Projectile . | . . . . . . . AOE 42 | . 30 10 . . . 2 Terrain Rammed . | . . . . . . . Walls Destroyed . | . . . . . . . Machines Disabled . | . . . . . . . Actions | -11 -10 -9 -9 -9 -8 -8 --------- Run | Yrd Mat Mat Min Exi Min Mat Total 2560 | 200 511 355 352 440 185 517 Wait 172 | 6 34 20 1 1 8 102 Move 2115 | 172 412 284 345 438 164 300 Hop . | . . . . . . . Pick Up 46 | 4 16 12 3 . 1 10 Fast Attach 15 | 7 2 2 . . 1 3 Attach 17 | . 3 5 . . 2 7 Detach . | . . . . . . . Swap 16 | . 6 4 . 1 . 5 Drop 13 | . 1 2 3 . . 7 Fire 166 | 11 37 26 . . 9 83 Melee . | . . . . . . . Ram . | . . . . . . . Kick . | . . . . . . . Crush . | . . . . . . . Escape Stasis . | . . . . . . . Rewire . | . . . . . . . Trap . | . . . . . . . Miscellaneous . | . . . . . . . Route ------- -11/Scrapyard -10/Materials (discovered 3 exits: *Mat / [*Min x2]) -9/Materials -9/Mines (discovered 2 exits: *Mat / [*Exi]) -9/Exiles (discovered 2 exits: [*Min x2]) -8/Mines -8/Materials (discovered 1 exit: Fac) History --------- Turn | Location | Event 11 | -11/Scrapyard | Discovered new exit (range 16) 209 | -11/Scrapyard | Entered Materials 294 | -10/Materials | Discovered new exit (range 6) 329 | -10/Materials | Build established: Mutant 367 | -10/Materials | Core integrity fell below 50% 389 | -10/Materials | Lost 3 parts (1p1n1w) 533 | -10/Materials | Discovered new exit (range 12) 709 | -10/Materials | Derelicts attacked the area 741 | -10/Materials | Discovered new exit (range 16) 839 | -10/Materials | Entered another Materials area 839 | -9/Materials | Evolved 2 slots: Propulsion x1, Utility x1 1090 | -9/Materials | Lost 4 parts (2n2w) 1244 | -9/Materials | Discovered new exit (range 15) 1257 | -9/Materials | Entered Mines 1260 | -9/Mines | Met a Derelict bent on vengeance 1262 | -9/Mines | Learned location of Storage (-7) 1288 | -9/Mines | Found a damaged Exp. Sensor Array with a note attached 1399 | -9/Mines | Learned location of 1 exit from Materials 1491 | -9/Mines | Joined a pair of Derelicts in attacking an 0b10 outpost 1556 | -9/Mines | Discovered new exit (range 5) 1568 | -9/Mines | Deemed a non-threat by the Exiles lab entrance 1569 | -9/Mines | Discovered new exit (range 5) 1590 | -9/Mines | Entered Exiles 1605 | -9/Exiles | Discovered new exit (range 14) 1616 | -9/Exiles | Met 8R-AWN 1629 | -9/Exiles | Met EX-HEX 1658 | -9/Exiles | Met EX-BIN 1670 | -9/Exiles | Met EX-DEC 1705 | -9/Exiles | Visited The Gauntlet 1873 | -9/Exiles | Discovered new exit (range 14) 2015 | -9/Exiles | Entered Mines 2057 | -8/Mines | Lost 3 parts (1p1n1u) 2215 | -8/Mines | Discovered new exit (range 8) 2222 | -8/Mines | Entered Materials 2222 | -8/Materials | Evolved 2 slots: Propulsion x1, Utility x1 2223 | -8/Materials | Identified exit to Factory 2913 | -8/Materials | Self-destructed Last Messages --------------- 02875_ Lgt. Armor Plating destroyed. 02877_ Arm. Treads destroyed. 02879_ Terminal disabled. 02879_ Chain reaction triggered in Corrupted Nuclear Core. 02882_ U-05 Engineer destroyed. 02885_ System corrupted: Heat flow error (+173). 02886_ EMP Blaster destroyed. 02888_ K-01 Serf destroyed. 02890_ Arm. Treads destroyed. 02890_ Lgt. Nuclear Core destroyed. 02893_ Penetrated by Slug. 02894_ G-47 Trooper IFF system glitched. 02898_ Knocked back. 02898_ Wheel+ destroyed. 02901_ Hvy. Assault Rifle destroyed. 02903_ G-47 Trooper misfires. 02910_ Arm. Wheel destroyed. 02910_ Knocked back. 02911_ Acquired 6 matter. Map ----- +----------------------------------------------------+ | | | | | | | | | ?????????????????????????????????????? | | ?????????????????????????????????????? | | ?????????????????????????????????????? | | ?????????????????????????????????????? | | ?????????????????????????????????????? | | ?????????????????????????????????????? | | ?????????????????????????????????????? | | ?????????????????????????????????????? | | ?????????????????????????????????????? | | ?????????????????????????????????????? | | ??????????????#######????????????????? | | ??????????????? #????????????????? | | ??????????????? % #????????????????? | | ???????????????? ! #????????????????? | | ?????????########%= #????????????????? | | ?????????# #!! #????????????????? | | ?????????# g #????????????????? | | ?????????# ! !H%g +????????????????? | | ?????????# [=%!% %#????????????????? | | ?????????#% %[=!# #????????????????? | | ?????????# !# #????????????????? | | ????????#""##@;## #????????????????? | | ?????????# % # #????????????????? | | ?????????# T # #????????????##### | | ?????????# + "############# | | ?????????# # | | ?????????# # | | ?????????# # %% | | ?????????##############+########## | | ??????????????????# ==[ ####### | | ??????????????????# = # # | | ??????????????????# !! # """ # | | ??????????????????# !! ! # """ # = | | ??????????????????# # """ # != | | ??????????????????# # !+% | | ??????????????????# # """ #= | | ??????????????????# # """ # * | | ??????????????????########### """ # | | ????????????????????????????# # ! | | ????????????????????????????# # | | ????????????????????????????# # | | ????????????????????????????#! # | | ????????????????????????????####### % | | ??????????????????????????????????# | | ??????????????????????????????????# | | ??????????????????????????????????# | +----------------------------------------------------+ Best States ------------- Heat Dissipation 31 Energy Generation 14 Energy Capacity 250 Matter Stores 300 Matter Capacity 300 Sight Range 16 Robot Scan Range 14 Terrain Scan Density 10 Armor Coverage 150 Evasion (%) 44 Targeting Accuracy 12 Recoil Reduction 2 Item Schematics ----------------- None Robot Schematics ------------------ None Fabricated ------------ Nothing Repaired ---------- Nothing Studied --------- Wheel | -9/Materials | Hacked Alien Tech Used ----------------- None Achievements -------------- None Challenges ------------ None Game ------ Seed IntegratedPartitionLattice Manual? 0 Play Time 00:39:50 Cumulative 25.3 hours Start 2026.06.20 @ 14:14:58 End 2026.06.20 @ 16:19:42 Sessions 3 Manual Loads 0 Difficulty Rogue Special Mode None Game No. 31 Rogue 27 Adventurer 4 Explorer 0 Win Type - Total 0 Types 0/0/0/0/0/0/0/0/0/0 Lore% 9 Gallery% 12 Achievement% 14 Wizard Run 0 Options --------- Layout 2 ASCII 0 Keyboard 1 Movement Numpad Keybinds 0 Fullscreen 1 Font 24/Terminus Map View 50x44 Zoom Use 6% Tactical HUD 1 Map Filters NONE Filters NONE Steam 1 RUN: a5cabc82-6685-4c4c-8995-707f97ba6836